bitfinex-derivatives/quotes_BNBF0:USTF0_20250509
["timestamp","ask_amount","ask_price","bid_price","bid_amount"]
[1746804223916,0.26751176,634.19,631.96,0.290342]
[1746804224414,0.26751176,634.26,631.97,0.290342]
[1746804225314,0.26751176,634.26,631.86,0.290342]
[1746804227209,0.26751176,634.26,631.87,0.290342]
[1746804227417,0.26751176,634.25,631.87,0.290342]
[1746804227712,0.26751176,634.24,631.88,0.290342]
[1746804227910,0.63551176,634.24,631.88,0.290342]
[1746804228312,1.99913276,634.1,631.88,0.290342]
[1746804228518,1.99913276,634.1,631.86,0.290342]
[1746804228718,0.78251176,634.09,631.86,0.290342]
[1746804229222,0.26751176,634.08,631.86,0.290342]
[1746804229616,0.26751176,634.07,631.86,0.290342]
[1746804229915,0.26751176,634.06,631.86,0.290342]
[1746804230418,0.26751176,634.05,631.86,0.290342]
[1746804230917,0.26751176,634.04,631.86,0.290342]
[1746804231317,0.274913,634.03,631.86,0.290342]
[1746804231919,0.26751176,634.02,631.86,0.290342]
[1746804233021,0.27490215,634.01,631.86,0.290342]
[1746804233214,0.27490215,634.01,631.85,0.56524415]
[1746804233522,0.26751176,634.0,631.86,0.290342]
[1746804237825,0.26751176,634.0,631.87,0.290342]
[1746804238329,0.26751176,634.0,631.86,0.290342]
[1746804238626,0.27490215,634.01,631.85,0.27490215]
[1746804239125,0.26715895,634.0,631.86,0.29031965]
[1746804240831,0.26715895,634.0,631.87,0.29031965]
[1746804241231,0.26715895,634.0,631.88,0.29031965]
[1746804241526,0.26715895,634.0,631.89,0.29031965]
[1746804241933,0.26715895,634.0,631.9,0.29031965]
[1746804242126,0.27486632,633.99,631.9,0.29031965]
[1746804243033,0.27486632,633.99,631.87,0.27486306]
[1746804243533,0.26715895,633.98,631.88,0.29031965]
[1746804244233,0.26715895,633.98,631.98,0.31646571]
[1746804244734,0.26715895,633.98,631.99,0.29031965]
[1746804245133,1.99913276,634.57,631.99,0.29031965]
[1746804245134,0.27482725,633.97,631.99,0.29031965]
[1746804245330,0.82982725,633.97,631.99,0.29031965]
[1746804245527,0.26715895,633.96,631.99,0.29031965]
[1746804247232,0.368,633.95,631.99,0.29031965]
[1746804247734,0.26715895,633.94,631.99,0.29031965]
[1746804248033,0.368,633.95,631.98,0.31646571]
[1746804248334,0.26746384,633.94,631.99,0.290342]
[1746804249033,0.26746384,633.96,631.99,0.290342]
[1746804249835,0.26746384,633.95,631.99,0.290342]
[1746804250134,0.27482725,633.97,631.98,0.31646571]
[1746804250435,0.26741193,633.96,631.98,0.31646571]
[1746804250639,0.26741193,633.96,631.99,0.2904214]
[1746804250935,0.26741193,633.95,631.99,0.2904214]
[1746804251328,0.26741193,633.96,631.99,0.2904214]
[1746804252137,0.26741193,633.96,631.98,0.31646571]
[1746804252433,0.26741193,633.96,631.99,0.688]
[1746804253134,0.368,633.95,631.99,0.688]
[1746804253841,0.368,633.95,632.0,0.736]
[1746804254041,0.26741193,633.94,632.0,0.736]
[1746804254237,0.54232928,633.94,632.0,0.736]
[1746804255138,0.26741193,633.93,632.0,0.736]
[1746804255535,0.27491735,633.94,632.0,0.736]
[1746804255936,0.26696508,633.93,632.0,0.736]
[1746804256941,0.26696508,633.94,632.0,0.736]
[1746804257145,0.27490323,633.92,632.0,0.736]
[1746804257543,0.26696508,633.91,632.0,0.736]
[1746804258245,0.26696508,633.91,632.01,0.2903654]
[1746804260251,0.839,633.95,632.01,0.2903654]
[1746804260252,0.26696508,633.94,632.01,0.2903654]
[1746804261143,0.27484461,633.93,632.01,0.2903654]
[1746804261542,0.26696508,633.92,632.01,0.2903654]
[1746804263247,0.27487066,633.91,632.01,0.2903654]
[1746804264148,0.26696508,633.9,632.01,0.2903654]
[1746804265749,0.839,633.95,632.0,0.736]
[1746804265949,0.839,633.95,631.99,0.688]
[1746804266152,0.27485329,633.89,632.0,0.27485329]
[1746804266347,0.27485329,633.89,632.01,0.29031605]
[1746804267649,0.27485329,633.89,632.0,0.27485329]
[1746804268755,0.839,633.95,631.99,0.688]
[1746804269054,0.27484352,633.88,632.0,0.5651168]
[1746804269549,0.267361,633.87,632.01,0.29027328]
[1746804269855,0.267361,633.87,632.02,0.65]
[1746804270149,0.267361,633.87,632.03,0.29027328]
[1746804278058,0.27473937,633.86,632.03,0.29027328]
[1746804278452,0.267361,633.85,632.03,0.29027328]
[1746804279161,0.267361,633.85,632.04,0.29027328]
[1746804279560,0.267361,633.85,632.05,0.29027328]
[1746804279755,0.367,633.84,632.05,0.29027328]
[1746804279953,0.367,633.84,632.06,0.29027328]
[1746804280256,0.367,633.84,632.02,0.65]
[1746804280457,0.801,633.83,632.02,0.65]
[1746804280762,1.06851598,633.83,632.03,0.29019257]
[1746804280958,0.801,633.83,632.02,0.65]
[1746804281257,0.26751987,633.82,632.03,0.2901965]
[1746804281558,0.26751987,633.82,632.04,0.2901965]
[1746804281859,0.26751987,633.82,632.05,0.2901965]
[1746804282260,0.26751987,633.82,632.06,0.2901965]
[1746804282658,0.26751987,633.82,632.07,0.2901965]
[1746804282954,0.26751987,633.82,632.08,0.2901965]
[1746804283354,0.26751987,633.82,632.09,0.2901965]
[1746804283661,0.26751987,633.82,632.1,0.2901965]
[1746804284059,0.26751987,633.82,632.11,0.2901965]
[1746804284459,0.26751987,633.82,632.12,0.2901965]
[1746804284860,0.26751987,633.82,632.03,0.2901965]
[1746804286160,0.26751987,633.82,632.05,0.31643066]
[1746804286556,0.26751987,633.82,632.06,0.2901965]
[1746804287261,0.27483918,633.81,632.06,0.2901965]
[1746804287762,0.26751987,633.8,632.06,0.2901965]
[1746804289166,0.27483918,633.81,632.05,0.91143066]
[1746804289464,0.26757326,633.8,632.06,0.29025021]
[1746804290158,0.801,633.83,632.06,0.29025021]
[1746804290361,0.27485438,633.79,632.06,0.29025021]
[1746804291661,0.27485438,633.79,632.05,0.91143066]
[1746804291662,0.27485438,633.79,632.08,0.31641564]
[1746804291864,0.27485438,633.79,632.09,0.2902496]
[1746804292766,0.801,633.83,632.09,0.2902496]
[1746804292957,0.801,633.83,632.11,0.31640062]
[1746804293159,0.27484678,633.78,632.12,0.2902496]
[1746804293667,0.27484678,633.78,632.11,0.31640062]
[1746804293966,0.27484678,633.78,632.12,0.29027268]
[1746804294266,0.27484678,633.78,632.14,0.31638561]
[1746804295067,0.27484678,633.78,632.15,0.29027268]
[1746804296363,0.27484678,633.78,632.14,0.31638561]
[1746804296669,0.27484678,633.78,632.15,0.29026812]
[1746804298965,0.27484678,633.78,632.17,0.31637059]
[1746804299267,0.27484678,633.78,632.18,0.29026812]
[1746804299466,0.27484678,633.78,632.2,0.31635558]
[1746804299768,0.27484678,633.78,632.21,0.29026812]
[1746804300064,0.26757553,633.77,632.21,0.29026812]
[1746804300268,0.26757553,633.77,632.23,0.31634057]
[1746804300669,0.27484678,633.78,632.23,0.31634057]
[1746804300969,0.26756973,633.77,632.24,0.29024658]
[1746804301264,0.366,633.76,632.24,0.29024658]
[1746804301469,0.366,633.76,632.26,0.31632556]
[1746804301669,0.26756973,633.75,632.26,0.31632556]
[1746804301869,0.26756973,633.75,632.27,0.29024658]
[1746804302066,0.26756973,633.75,632.29,0.31631055]
[1746804302264,0.26756973,633.75,632.3,0.29024658]
[1746804302566,0.26756973,633.75,632.32,0.31629554]
[1746804302774,0.26756973,633.75,632.33,0.29024658]
[1746804302970,0.26756973,633.75,632.35,0.31628054]
[1746804303169,0.366,633.76,632.35,0.31628054]
[1746804303465,0.366,633.76,632.36,0.29024658]
[1746804303670,0.366,633.76,632.38,0.31626553]
[1746804304070,0.366,633.76,632.39,0.29024658]
[1746804309369,0.72,633.75,632.39,0.29024658]
[1746804310878,0.72,633.75,632.41,0.31625053]
[1746804311177,0.72,633.75,632.42,0.29024658]
[1746804311579,0.72,633.75,632.44,0.31623553]
[1746804311777,0.72,633.75,632.45,0.29024658]
[1746804311973,0.72,633.75,632.47,0.31622053]
[1746804312178,0.72,633.75,632.48,0.29024658]
[1746804312480,0.72,633.75,632.49,0.6]
[1746804312680,0.72,633.75,632.5,0.29024658]
[1746804313986,0.72,633.75,632.51,0.29024658]
[1746804314285,0.72,633.75,632.52,0.29024658]
[1746804314488,0.72,633.75,632.53,0.29024658]
[1746804314688,0.72,633.75,632.54,0.29024658]
[1746804316189,0.72,633.75,632.55,0.29024658]
[1746804316489,0.72,633.75,632.5,0.29024658]
[1746804320489,0.72,633.75,632.51,0.29024658]
[1746804320888,0.72,633.75,632.52,0.29024658]
[1746804321190,0.72,633.75,632.53,0.29024658]
[1746804321488,0.72,633.75,632.54,0.29024658]
[1746804321694,0.72,633.75,632.55,0.29024658]
[1746804322089,0.72,633.75,632.56,0.29024658]
[1746804322390,0.72,633.75,632.57,0.29024658]
[1746804322895,0.72,633.75,632.58,0.29024658]
[1746804323189,0.72,633.75,632.59,0.29024658]
[1746804323891,0.72,633.75,632.5,0.29024658]
[1746804326691,0.72,633.75,632.49,0.6]
[1746804327187,0.366,633.74,632.49,0.6]
[1746804327387,0.366,633.74,632.5,0.29016171]
[1746804330086,0.366,633.74,632.49,0.6]
[1746804331692,0.366,633.74,632.5,0.407]
[1746804332594,0.366,633.74,632.51,0.29019609]
[1746804333491,0.26752569,633.73,632.51,0.29019609]
[1746804333696,0.90052569,633.73,632.51,0.29019609]
[1746804334201,0.26752569,633.72,632.5,0.407]
[1746804335392,0.26752569,633.72,632.51,0.29026271]
[1746804336594,0.633,633.73,632.5,0.407]
[1746804336898,0.633,633.73,632.51,0.29028319]
[1746804337199,0.26760603,633.72,632.51,0.29028319]
[1746804337795,0.27482942,633.71,632.51,0.29028319]
[1746804338294,0.26760603,633.7,632.5,0.407]
[1746804343397,0.633,633.73,632.5,0.407]
[1746804346601,0.633,633.73,632.51,0.29019665]
[1746804348909,0.26729278,633.72,632.5,0.407]
[1746804350003,0.26729278,633.72,632.49,0.6]
[1746804350204,0.54210592,633.72,632.49,0.87481314]
[1746804350604,0.26729278,633.71,632.49,0.87481314]
[1746804352407,0.26729278,633.71,632.5,0.427]
[1746804353106,0.2748457,633.7,632.5,0.427]
[1746804353508,0.26729278,633.69,632.5,0.427]
[1746804355204,0.6398457,633.7,632.5,0.427]
[1746804355509,0.26709894,633.69,632.5,0.427]
[1746804356010,0.27484244,633.68,632.5,0.427]
[1746804356511,0.26709894,633.67,632.5,0.427]
[1746804357411,0.26709894,633.69,632.51,0.29026826]
[1746804358209,0.26709894,633.69,632.52,0.704]
[1746804358403,0.26709894,633.69,632.53,0.29026826]
[1746804358605,0.365,633.7,632.52,0.704]
[1746804361009,0.365,633.7,632.53,0.29011646]
[1746804362604,0.939,633.7,632.53,0.29011646]
[1746804366113,0.939,633.7,632.53,0.85811646]
[1746804366510,0.939,633.7,632.54,0.29011646]
[1746804368413,0.26699682,633.69,632.54,0.29011646]
[1746804370713,0.939,633.7,632.53,0.568]
[1746804371113,0.26685936,633.69,632.54,0.29025208]
[1746804372317,0.26685936,633.69,632.53,0.568]
[1746804374617,1.21381639,633.7,632.53,0.568]
[1746804375522,0.26680787,633.69,632.53,0.568]
[1746804377014,0.574,633.7,632.53,0.568]
[1746804377218,0.27488586,633.68,632.53,0.568]
[1746804377714,0.2667846,633.67,632.53,0.568]
[1746804378718,0.365,633.66,632.53,0.568]
[1746804379521,0.2667846,633.65,632.53,0.568]
[1746804380219,0.2748902,633.64,632.53,0.568]
[1746804380614,0.2667846,633.63,632.53,0.568]
[1746804383320,0.27489889,633.62,632.53,0.568]
[1746804383520,0.2667846,633.61,632.53,0.568]
[1746804386121,0.27489889,633.62,632.53,0.568]
[1746804386622,0.26659829,633.61,632.53,0.568]
[1746804389222,0.27494884,633.6,632.53,0.568]
[1746804389718,0.26659829,633.59,632.53,0.568]
[1746804390022,0.26659829,633.58,632.53,0.568]
[1746804390321,0.26659829,633.57,632.53,0.568]
[1746804390718,0.26659829,633.56,632.53,0.568]
[1746804391122,0.26659829,633.55,632.53,0.568]
[1746804391422,0.26659829,633.59,632.53,0.568]
[1746804391924,0.742,633.58,632.53,0.568]
[1746804392118,1.64742337,633.58,632.53,0.568]
[1746804392324,0.26659829,633.57,632.53,0.568]
[1746804395121,0.27494015,633.56,632.53,0.568]
[1746804395425,0.26659829,633.55,632.53,0.568]
[1746804396223,0.26659829,633.55,632.53,1.257]
[1746804396520,0.27494015,633.56,632.53,1.257]
[1746804396924,0.26657896,633.55,632.53,1.257]
[1746804397625,0.26657896,633.54,632.53,1.257]
[1746804397923,0.26657896,633.55,632.53,1.257]
[1746804398824,1.106,633.58,632.53,1.257]
[1746804399726,0.26681301,633.57,632.53,1.257]
[1746804404127,1.106,633.58,632.53,1.257]
[1746804405727,1.106,633.58,632.54,0.29021363]
[1746804407126,1.106,633.58,632.53,1.257]
[1746804407521,1.106,633.58,632.54,0.29021276]
[1746804410126,1.106,633.58,632.54,0.88521276]
[1746804410724,1.106,633.58,632.55,0.29021276]
[1746804413525,1.106,633.58,632.54,0.595]
[1746804414432,0.26722421,633.57,632.55,0.29026599]
[1746804414734,0.26722421,633.57,632.55,0.77126599]
[1746804415131,0.26722421,633.57,632.55,0.481]
[1746804416236,0.2748674,633.56,632.55,0.481]
[1746804416636,0.26722421,633.55,632.55,0.481]
[1746804417535,0.742,633.58,632.55,0.481]
[1746804418037,0.26718895,633.57,632.55,0.481]
[1746804418337,0.63118895,633.57,632.55,0.481]
[1746804418738,0.26718895,633.56,632.55,0.481]
[1746804420734,0.364,633.57,632.55,0.481]
[1746804421439,0.26709555,633.56,632.55,0.481]
[1746804422645,0.26709555,633.56,632.55,1.154]
[1746804422945,0.693,633.55,632.55,1.154]
[1746804423347,0.26709555,633.54,632.55,1.154]
[1746804428150,0.27495862,633.53,632.55,1.154]
[1746804428646,0.26709555,633.52,632.55,1.154]
[1746804431046,0.693,633.55,632.55,1.154]
[1746804431047,0.26709555,633.54,632.55,1.154]
[1746804431250,0.27494776,633.51,632.55,1.154]
[1746804431747,0.26709555,633.5,632.55,1.154]
[1746804434955,0.27494776,633.51,632.55,1.154]
[1746804435357,0.26723025,633.5,632.55,1.154]
[1746804436155,0.27494776,633.51,632.55,1.154]
[1746804436655,0.693,633.55,632.55,1.154]
[1746804442663,0.26695528,633.54,632.55,1.154]
[1746804443361,0.54182051,633.54,632.55,1.154]
[1746804443562,0.26695528,633.53,632.55,1.154]
[1746804447063,0.26695528,633.68,632.55,1.154]
[1746804447261,0.363,633.52,632.55,1.154]
[1746804447861,0.26695528,633.51,632.56,0.29027913]
[1746804448463,0.363,633.52,632.47,0.31622053]
[1746804449368,0.363,633.52,632.48,0.29026793]
[1746804449966,0.528,633.51,632.48,0.29026793]
[1746804450467,0.528,633.51,632.49,0.464]
[1746804450669,0.528,633.51,632.49,1.053]
[1746804450969,0.528,633.51,632.5,0.29026793]
[1746804452371,0.528,633.51,632.49,1.053]
[1746804454272,0.528,633.51,632.5,0.29014832]
[1746804455072,0.528,633.51,632.51,0.27475564]
[1746804455268,0.528,633.51,632.52,0.29014832]
[1746804458369,0.528,633.51,632.51,0.27475998]
[1746804458667,0.528,633.51,632.52,0.29014832]
[1746804463969,0.528,633.51,632.53,0.29014832]
[1746804464371,0.528,633.51,632.54,0.29014832]
[1746804464774,0.528,633.51,632.55,0.29014832]
[1746804464975,0.363,633.52,632.56,0.29014832]
[1746804465376,0.363,633.52,632.57,0.29014832]
[1746804465671,0.363,633.52,632.58,0.29014832]
[1746804466175,0.2746754,634.45,632.59,0.29014832]
[1746804466477,0.26708306,634.44,632.6,0.29014832]
[1746804466975,0.26708306,634.44,632.61,0.29014832]
[1746804467378,0.27438844,634.59,632.62,0.29014832]
[1746804467673,0.483,634.58,632.62,0.29014832]
[1746804467877,0.75008306,634.58,632.63,0.29014832]
[1746804468078,0.26708306,634.57,632.64,0.29014832]
[1746804468373,0.26708306,634.57,632.65,0.29014832]
[1746804468976,0.26708306,634.57,632.66,0.29014832]
[1746804469475,0.26708306,634.57,632.67,0.29014832]
[1746804469671,0.62908306,634.57,632.68,0.29014832]
[1746804470078,0.26708306,634.56,632.69,0.29014832]
[1746804470372,0.362,634.57,632.61,0.29014832]
[1746804471073,0.362,634.57,632.6,0.27450315]
[1746804471477,0.362,634.57,632.61,0.28992411]
[1746804472078,0.362,634.57,632.62,0.625]
[1746804472476,0.362,634.57,632.63,0.28992411]
[1746804474773,0.2667739,634.56,632.63,0.28992411]
[1746804476378,0.2667739,634.56,632.64,0.28992411]
[1746804476678,0.2667739,634.56,632.65,0.28992411]
[1746804477279,0.2667739,634.56,632.66,0.28992411]
[1746804477678,0.2667739,634.56,632.67,0.28992411]
[1746804477979,0.2667739,634.56,632.68,0.28992411]
[1746804478474,0.2667739,634.56,632.69,0.28992411]
[1746804478679,0.2667739,634.56,632.7,0.28992411]
[1746804479080,0.2667739,634.56,632.63,0.28992411]
[1746804479277,0.27455621,634.55,632.64,0.27455621]
[1746804479981,0.2667739,634.54,632.65,0.28992411]
[1746804480280,0.2667739,634.54,632.66,0.28992411]
[1746804480680,0.2667739,634.54,632.67,0.28992411]
[1746804481082,0.2667739,634.54,632.68,0.28992411]
[1746804481381,0.2667739,634.54,632.65,0.28992411]
[1746804481777,0.2667739,634.54,632.66,0.28992411]
[1746804482183,0.2745378,634.53,632.66,0.28992411]
[1746804482485,0.2745378,634.53,632.67,0.28992411]
[1746804482784,0.2667739,634.52,632.65,0.28992411]
[1746804482984,0.2667739,634.52,632.67,0.45]
[1746804483586,0.2667739,634.52,632.68,0.28992411]
[1746804484187,0.2745378,634.53,632.68,0.28992411]
[1746804484483,0.362,634.52,632.68,0.28992411]
[1746804486182,0.362,634.52,632.67,0.45]
[1746804486482,0.26628591,634.51,632.68,0.28988583]
[1746804487188,0.26628591,634.51,632.69,0.28988583]
[1746804487589,0.26628591,634.51,632.7,0.28988583]
[1746804487983,0.26628591,634.51,632.71,0.28988583]
[1746804488289,0.362,634.52,632.72,0.28988583]
[1746804488689,0.362,634.52,632.73,0.28988583]
[1746804488990,0.362,634.52,632.74,0.28988583]
[1746804489588,0.362,634.52,632.75,0.28988583]
[1746804489987,0.362,634.52,632.76,0.28988583]
[1746804490292,0.362,634.52,632.77,0.28988583]
[1746804490691,0.362,634.52,632.78,0.28988583]
[1746804490993,0.362,634.52,632.68,0.27450207]
[1746804491288,0.362,634.52,632.69,0.28984793]
[1746804491688,0.362,634.52,632.7,0.28984793]
[1746804492493,0.26650083,634.51,632.71,0.28984793]
[1746804492795,0.362,634.52,632.72,0.28984793]
[1746804493192,0.362,634.52,632.73,0.28984793]
[1746804493393,0.412,634.51,632.73,0.28984793]
[1746804493694,0.412,634.51,632.74,0.28984793]
[1746804494388,0.412,634.51,632.75,0.28984793]
[1746804494587,0.412,634.51,632.76,0.28984793]
[1746804495294,0.412,634.51,632.77,0.28984793]
[1746804495692,0.412,634.51,632.78,0.28984793]
[1746804495993,0.412,634.51,632.79,0.28984793]
[1746804496387,0.412,634.51,632.8,0.28984793]
[1746804496795,0.412,634.51,632.81,0.28984793]
[1746804497288,0.412,634.51,632.82,0.28984793]
[1746804497494,0.412,634.51,632.83,0.28984793]
[1746804497797,0.412,634.51,632.84,0.28984793]
[1746804498092,0.412,634.51,632.85,0.28984793]
[1746804498995,0.412,634.51,632.75,0.28984793]
[1746804502301,0.412,634.51,632.76,0.28984793]
[1746804502699,0.412,634.51,632.77,0.28984793]
[1746804503096,0.412,634.51,632.78,0.28984793]
[1746804503295,0.412,634.51,632.75,0.27443388]
[1746804503702,0.412,634.51,632.76,0.28974994]
[1746804504099,0.412,634.51,632.77,0.28974994]
[1746804504500,0.412,634.51,632.78,0.28974994]
[1746804504896,0.412,634.51,632.79,0.28974994]
[1746804505302,0.412,634.51,632.8,0.28974994]
[1746804505696,0.412,634.51,632.81,0.28974994]
[1746804506104,0.412,634.51,632.82,0.28974994]
[1746804506498,0.412,634.51,632.83,0.28974994]
[1746804506903,0.412,634.51,632.84,0.28974994]
[1746804507203,0.412,634.51,632.85,0.28974994]
[1746804507599,0.412,634.51,632.86,0.28974994]
[1746804508400,0.412,634.51,632.87,0.28974994]
[1746804508801,0.412,634.51,632.88,0.28974994]
[1746804509208,0.412,634.51,632.89,0.28974994]
[1746804509608,0.412,634.51,632.9,0.28974994]
[1746804509908,0.412,634.51,632.91,0.28974994]
[1746804510308,0.412,634.51,632.92,0.28974994]
[1746804510508,0.412,634.51,632.81,0.99378395]
[1746804510905,0.412,634.51,632.82,0.28974828]
[1746804511107,0.361,634.5,632.82,0.28974828]
[1746804511404,0.361,634.5,632.83,0.28974828]
[1746804512009,0.361,634.5,632.84,0.79374828]
[1746804512702,0.361,634.5,632.85,0.28974828]
[1746804514311,0.361,634.5,632.86,0.28974828]
[1746804514811,0.361,634.5,632.84,0.504]
[1746804514812,0.361,634.5,632.87,0.28974828]
[1746804515007,0.361,634.5,632.84,0.504]
[1746804515307,0.26675209,634.49,632.85,0.2898071]
[1746804515710,0.26675209,634.49,632.86,0.2898071]
[1746804516011,0.26675209,634.49,632.87,0.2898071]
[1746804516412,0.26675209,634.49,632.88,0.2898071]
[1746804516810,0.26675209,634.49,632.89,0.2898071]
[1746804517214,0.26675209,634.49,632.9,0.2898071]
[1746804517511,0.26675209,634.49,632.91,0.2898071]
[1746804517711,0.26675209,634.49,632.92,0.2898071]
[1746804518211,0.26675209,634.49,632.93,0.2898071]
[1746804518607,0.26675209,634.49,632.94,0.2898071]
[1746804518913,0.26675209,634.49,632.95,0.2898071]
[1746804519110,0.26675209,634.49,632.95,0.7938071]
[1746804519315,0.26675209,634.49,632.96,0.2898071]
[1746804519815,0.26675209,634.49,632.97,0.2898071]
[1746804520015,0.26675209,634.49,632.98,0.2898071]
[1746804520515,0.26675209,634.49,632.99,0.2898071]
[1746804521011,0.26675209,634.49,633.0,0.2898071]
[1746804521312,0.26675209,634.49,633.01,0.2898071]
[1746804521517,0.451,634.48,633.01,0.2898071]
[1746804521811,0.451,634.48,633.02,0.2898071]
[1746804522117,0.26675209,634.47,632.96,0.2898071]
[1746804522511,0.26675209,634.47,632.97,0.2898071]
[1746804522915,0.26675209,634.47,632.96,0.2898071]
[1746804524120,0.27452156,634.46,632.97,0.2898071]
[1746804524418,0.26675209,634.45,632.98,0.2898071]
[1746804524719,0.26675209,634.45,632.99,0.2898071]
[1746804525018,0.26675209,634.45,632.96,0.2898071]
[1746804525318,0.27452156,634.46,632.95,0.504]
[1746804525915,0.26668119,634.45,632.96,0.28993416]
[1746804526415,0.26668119,634.45,632.97,0.28993416]
[1746804526719,0.26668119,634.45,632.98,0.28993416]
[1746804527120,0.26668119,634.45,632.99,0.28993416]
[1746804527519,0.26668119,634.45,632.95,0.504]
[1746804527520,0.26668119,634.47,633.0,0.28993416]
[1746804527714,0.26668119,634.47,633.01,0.28993416]
[1746804528217,0.26668119,634.47,633.02,0.28993416]
[1746804528423,0.451,634.48,632.95,0.504]
[1746804528722,0.26667801,634.47,632.96,0.28993265]
[1746804530223,0.27452156,634.46,632.96,0.28993265]
[1746804530723,0.26667801,634.45,632.96,0.28993265]
[1746804536127,0.749,634.45,632.96,0.28993265]
[1746804536526,0.26667801,634.44,632.96,0.28993265]
[1746804539427,0.54120715,634.44,632.96,0.28993265]
[1746804539831,0.27452914,634.44,632.95,0.77852914]
[1746804540031,0.2668574,634.43,632.96,0.29001151]
[1746804542225,0.2668574,634.44,632.96,0.29001151]
[1746804542430,0.27454213,634.42,632.96,0.29001151]
[1746804542826,0.6268574,634.41,632.96,0.29001151]
[1746804543330,0.2668574,634.4,632.96,0.29001151]
[1746804546332,0.2668574,634.4,632.97,0.501]
[1746804546836,0.2668574,634.4,632.98,0.29001151]
[1746804558540,0.2668574,634.4,633.0,0.31595576]
[1746804559046,0.749,634.45,633.0,0.31595576]
[1746804559047,0.2668574,634.44,633.01,0.29001151]
[1746804559346,0.2668574,634.44,633.03,0.31594079]
[1746804559949,0.2668574,634.44,633.04,0.29001151]
[1746804560249,0.2668574,634.53,633.04,0.29001151]
[1746804561145,0.2668574,634.53,633.06,0.31592582]
[1746804561450,0.2668574,634.53,633.07,0.29001151]
[1746804562150,0.36,634.52,633.07,0.29001151]
[1746804562450,0.2668574,634.51,633.07,0.29001151]
[1746804562653,0.2668574,634.51,633.09,0.31591084]
[1746804562852,0.598,634.5,633.09,0.31591084]
[1746804563547,0.26659242,634.49,633.1,0.2899261]
[1746804563753,0.26659242,634.49,633.12,0.31589588]
[1746804564053,0.598,634.5,633.12,0.31589588]
[1746804564653,0.598,634.5,633.13,0.461]
[1746804564850,0.598,634.5,633.15,0.31588091]
[1746804565347,0.598,634.5,633.16,0.28987407]
[1746804565754,0.598,634.5,633.18,0.31586594]
[1746804566250,0.598,634.5,633.19,0.28987407]
[1746804567755,0.26645276,634.49,633.19,0.28987407]
[1746804568648,0.598,634.5,633.19,0.28987407]
[1746804569552,0.598,634.5,633.21,0.31585098]
[1746804569859,0.26641546,634.49,633.22,0.28987407]
[1746804570565,0.598,634.5,633.22,0.28987407]
[1746804571162,0.598,634.5,633.24,0.31583601]
[1746804571569,0.598,634.5,633.25,0.28987407]
[1746804571757,0.598,634.5,633.27,0.31582105]
[1746804572361,0.598,634.5,633.28,0.28987407]
[1746804572866,0.598,634.5,633.3,0.31580609]
[1746804573468,0.598,634.5,633.31,0.28987407]
[1746804573768,0.598,634.5,633.33,0.31579113]
[1746804574267,0.598,634.5,633.34,0.28987407]
[1746804574464,0.598,634.5,633.36,0.31577617]
[1746804574867,0.598,634.5,633.37,0.28987407]
[1746804575063,0.598,634.5,633.39,0.31576122]
[1746804575670,0.598,634.5,633.4,0.28981209]
[1746804575865,0.598,634.5,633.42,0.31574626]
[1746804576267,0.598,634.5,633.43,0.28981209]
[1746804577470,0.598,634.5,633.45,0.31573131]
[1746804578170,0.598,634.5,633.46,0.28981209]
[1746804578370,0.598,634.5,633.48,0.31571636]
[1746804579771,0.598,634.5,633.49,0.28980156]
[1746804579973,0.598,634.5,633.51,0.3157014]
[1746804581971,0.36,634.52,633.51,0.3157014]
[1746804584770,0.36,634.52,633.52,0.28981217]
[1746804584970,0.36,634.52,633.54,0.31568646]
[1746804585671,0.49,634.51,633.54,0.31568646]
[1746804586672,0.49,634.51,633.54,0.82068646]
[1746804587176,0.49,634.51,633.55,0.28981098]
[1746804587475,0.49,634.51,633.57,0.31567151]
[1746804589878,0.36,634.5,633.57,0.31567151]
[1746804592477,0.36,634.5,633.58,0.28981369]
[1746804592679,0.36,634.5,633.6,0.31565656]
[1746804596078,0.26622127,634.49,633.61,0.28981175]